[Event "FIDE WCCC U10 2018"]
[Site "Santiago de Compostela"]
[Date "2018.11.12"]
[Round "8"]
[White "Hardaway, Brewington"]
[Black "Cherniaiev, Tykhon"]
[Result "0-1"]
[ECO "B21"]
[WhiteElo "1533"]
[BlackElo "1940"]
[Annotator "NA RC"]
[PlyCount "118"]
[EventDate "2018.11.04"]
[EventType "swiss"]
[EventCountry "ESP"]
[SourceTitle "playchess.com"]
[Source "ChessBase"]
[SourceQuality "1"]
[TimeControl "40/5400+30:1800+30"]

{[%evp 8,102,64,46,71,71,89,50,59,41,58,29,35,40,27,22,29,38,34,32767,32767,32767,32767,32767,32767,32767,32767,-8,0,-10,0,0,0,-31,-38,-84,-87,-87,-93,-93,-99,-236,-85,32767,-52,-63,-13,-17,32767,32767,32767,32767,32767,-239,-288,-261,-265,-286,-277,-495,-213,-245,32767,-344,-279,-266,32767,-337,32767,-344,32767,-489,32767,32767,32767,32767,32767,-541,32767,32767,-777,-693,-1183,-1165,-1499,-1733,-1625,-5293,-1483,-12841,-29981,-5397,32767,-29983,-29986,-29985,-307]} 1. e4 {[%emt 0:00:00]} c5 {[%emt 0:00:00]} 2. d4 {[%emt 0:00:00]} cxd4 {[%emt 0:01:53]} 3. c3 {[%emt 0:00:00]} e6 {[%emt 0:10:12]} 4. cxd4 {[%emt 0:06:52]} d6 {[%emt 0:03:14]} 5. Nc3 {[%emt 0:03:32] B22: Sicilian: 2 c3} (5. Nf3 Nf6 6. Nc3 Be7 7. Bd3 O-O 8. O-O Nc6 9. a3 Bd7 10. h3 Rc8 11. Be3 a6 12. Rc1 Na5 13. Qe2 b5 14. e5 dxe5 15. dxe5 Nd5 16. Nxd5 exd5 17. Rfd1 Rxc1 18. Bxc1 {1-0 (53) Rowies,A (2356)-Da Maia,V (2467) ICCF email 2009}) 5... a6 {[%emt 0:06:46]} 6. Nf3 {[%emt 0:06:44]} Nd7 {[%emt 0:03:52]} 7. Bf4 {[%emt 0:01:29]} b5 $146 {[%emt 0:09:24]} ({Predecessor:} 7... b6 8. Be2 Bb7 9. O-O h6 10. h3 Ngf6 11. e5 dxe5 12. dxe5 Nd5 13. Nxd5 Bxd5 {0-1 (52) Bloh,F (1295)-Hauser,C (1653) Hamburg 2017}) 8. a3 {[%emt 0:02:15]} Be7 {[%emt 0:02:53]} 9. Bd3 {[%emt 0:01:50]} Bb7 {[%emt 0:01:54]} 10. h3 {[%emt 0:05:16]} Ngf6 {[%emt 0:01:25]} 11. O-O {[%emt 0:05:13]} O-O {[%emt 0:00:52]} 12. Qe2 {[%emt 0:05:36]} Re8 {[%emt 0:05:36]} 13. Rad1 {[%emt 0:05:48]} Rc8 {[%emt 0:02:28]} 14. Bb1 {[%emt 0:04:33]} Nf8 {[%emt 0:03:15]} 15. Rfe1 {[%emt 0:05:36]} Ng6 {[%emt 0:02:37]} 16. Bh2 {[%emt 0:01:29]} Qb6 {[%emt 0:01:19]} 17. e5 {[%emt 0:09:30]} dxe5 {[%emt 0:05:20]} 18. dxe5 {[%emt 0:02:41]} Nd5 {[%emt 0:01:56]} 19. Ne4 {[%emt 0:03:45]} Red8 {[%emt 0:08:12]} 20. Rd2 {[%emt 0:09:31]} (20. Nfg5 $5 {[%cal Re2h5]} Ndf4 21. Bxf4 Nxf4 22. Qg4 Bxe4 23. Bxe4 $11) 20... Ndf4 {[%emt 0:06:40]} 21. Qd1 {[%emt 0:01:06]} Rxd2 {[%emt 0:01:04]} 22. Nfxd2 {[%emt 0:00:38]} Rd8 {[%emt 0:02:28]} 23. Bxf4 {[%emt 0:01:24]} Nxf4 {[%emt 0:00:10]} 24. Qg4 {[%emt 0:00:19] [#]} (24. Qc1 $17 {was the only defense.}) 24... Ng6 {[%emt 0:00:37]} (24... Nxg2 $1 $19 {[%mdl 512] and Black stays clearly on top.} 25. Re2 (25. Kxg2 Rxd2) 25... Nh4) 25. Nf3 {[%emt 0:00:46]} Qc7 {[%emt 0:03:58]} 26. Neg5 {[%emt 0:01:42]} Bxf3 {[%emt 0:02:08]} (26... Qc4 $17) 27. Nxf3 {[%emt 0:00:23]} Qc4 {[%emt 0:00:58]} 28. Qg3 {[%emt 0:01:40]} Qb3 {[%emt 0:00:55]} 29. Kh2 {[%emt 0:02:45]} Qxb2 {[%emt 0:01:04]} 30. h4 {[%emt 0:00:06]} Qxa3 {[%emt 0:03:14]} ({Less strong is} 30... Bxa3 31. h5 $17) 31. h5 {[%emt 0:00:23]} Nf8 {[%emt 0:00:10]} 32. Qf4 {[%emt 0:02:30]} Qb4 {[%emt 0:01:14]} 33. Be4 $2 {[%emt 0:00:17]} (33. Qxb4 {kämpft weiter.} Bxb4 34. Rc1) 33... g6 {[%emt 0:01:58]} (33... f5 $142 34. exf6 Bd6) 34. Rb1 {[%emt 0:00:31]} Qa5 {[%emt 0:01:12]} 35. Ng5 {[%emt 0:00:37]} (35. g3 {kämpft weiter.}) 35... Bxg5 {[%emt 0:00:57]} 36. Qxg5 {[%emt 0:00:06]} Rd4 {[%emt 0:00:44]} 37. f3 {[%emt 0:01:14]} (37. h6 $142 Nd7 38. Rc1) 37... Qd8 {[%emt 0:00:14]} 38. Qf4 {[%emt 0:00:23]} (38. Qxd8 {is a better defense.} Rxd8 39. Bb7) 38... gxh5 {[%emt 0:02:18]} 39. Qe3 {[%emt 0:01:35]} Ng6 {[%emt 0:00:35]} 40. Rc1 {[%emt 0:00:00]} Rd1 {[%emt 0:00:00]} 41. Rxd1 {[%emt 0:03:54]} Qxd1 {[%emt 0:02:35]} 42. Qa7 {[%emt 0:00:39]} Qd2 {[%emt 0:01:32]} 43. Bxg6 {[%emt 0:06:39]} hxg6 {[%emt 0:01:46]} 44. Qxa6 {[%emt 0:00:28]} Qf4+ {[%emt 0:00:09]} 45. Kh1 {[%emt 0:00:07]} Qxe5 {[%emt 0:00:07]} 46. Qc8+ {[%emt 0:01:11]} Kg7 {[%emt 0:00:07]} 47. Qb7 {[%emt 0:00:05]} Qb2 {[%emt 0:00:25]} 48. g4 {[%emt 0:00:19]} h4 {[%emt 0:00:53]} 49. f4 {[%emt 0:01:10]} h3 {[%emt 0:00:35]} 50. g5 {[%emt 0:00:20]} b4 {[%emt 0:00:11]} 51. Qf3 {[%emt 0:00:07] [#]} Qg2+ $19 {[%emt 0:00:18]} 52. Qxg2 {[%emt 0:00:03]} hxg2+ {[%emt 0:00:10]} 53. Kg1 {[%emt 0:00:09]} b3 {[%emt 0:00:05]} 54. f5 {[%emt 0:00:05]} gxf5 {[%emt 0:00:07]} 55. g6 {[%emt 0:00:03]} Kxg6 {[%emt 0:00:08]} 56. Kf2 {[%emt 0:00:06]} b2 {[%emt 0:00:09]} 57. Kxg2 {[%emt 0:00:07]} b1=Q {[%emt 0:00:08]} 58. Kg3 {[%emt 0:00:04]} Qc2 {[%emt 0:00:06]} 59. Kh4 {[%emt 0:00:03]} Qh2# {[%emt 0:00:11]} 0-1

[Event "FIDE WCCC U10 2018"]
[Site "Santiago de Compostela"]
[Date "2018.11.12"]
[Round "8"]
[White "Razhbadinov, Rasul"]
[Black "Nemsadze, Daviti"]
[Result "0-1"]
[ECO "B34"]
[WhiteElo "1529"]
[BlackElo "1762"]
[Annotator "NA RC"]
[PlyCount "60"]
[EventDate "2018.11.04"]
[EventType "swiss"]
[EventCountry "ESP"]
[SourceTitle "playchess.com"]
[Source "ChessBase"]
[SourceQuality "1"]
[TimeControl "40/5400+30:1800+30"]

1. e4 {[%emt 0:00:17]} c5 {[%emt 0:00:00]} 2. Nf3 {[%emt 0:00:10]} Nc6 {[%emt 0:00:15]} 3. d4 {[%emt 0:00:07]} cxd4 {[%emt 0:00:05]} 4. Nxd4 {[%emt 0:00:03]} Nf6 {[%emt 0:00:27]} 5. Nc3 {[%emt 0:00:20]} e5 {[%emt 0:00:25]} 6. Ndb5 {[%emt 0:00:26]} Bb4 {[%emt 0:00:49]} 7. a3 {[%emt 0:00:08]} Bxc3+ {[%emt 0:00:13]} 8. Nxc3 {[%emt 0:00:15]} O-O {[%emt 0:00:13]} 9. Bg5 {[%emt 0:00:38]} h6 {[%emt 0:00:28]} 10. Bh4 {[%emt 0:00:21]} d6 {[%emt 0:00:58]} 11. Nd5 {[%emt 0:00:46]} g5 {[%emt 0:00:07]} 12. Nxf6+ {[%emt 0:02:55]} Qxf6 {[%emt 0:00:09]} 13. Bg3 {[%emt 0:00:12]} Qg6 {[%emt 0:10:01]} 14. f3 {[%emt 0:07:37]} f5 {[%emt 0:07:14]} 15. Bc4+ {[%emt 0:00:50]} Kg7 {[%emt 0:01:20]} 16. Qd3 {[%emt 0:07:14]} fxe4 {[%emt 0:26:47]} 17. fxe4 {[%emt 0:03:49]} Bg4 {[%emt 0:01:13]} 18. h3 {[%emt 0:04:13]} Be6 {[%emt 0:04:52]} 19. O-O-O {[%emt 0:03:16]} Nd4 {[%emt 0:10:08]} 20. c3 {[%emt 0:07:43]} Bxc4 {[%emt 0:00:24]} 21. Qxc4 {[%emt 0:01:31]} Qxe4 {[%emt 0:00:35]} 22. Rxd4 {[%emt 0:11:32]} exd4 {[%emt 0:01:35]} 23. Re1 {[%emt 0:02:05]} Rac8 {[%emt 0:07:31]} 24. Qb3 {[%emt 0:02:27]} Qxg2 {[%emt 0:04:35]} 25. Re7+ {[%emt 0:00:19]} Kh8 {[%emt 0:00:18]} 26. Qe6 {[%emt 0:00:46]} Qf1+ {[%emt 0:00:06]} 27. Kd2 {[%emt 0:06:57]} dxc3+ {[%emt 0:00:17]} 28. bxc3 {[%emt 0:00:12]} Qf6 {[%emt 0:00:02]} 29. Qxd6 {[%emt 0:04:26]} Qxd6+ {[%emt 0:00:21]} 30. Bxd6 {[%emt 0:00:06]} Rfd8 {[%emt 0:00:03] Bg3} 0-1

[Event "FIDE WCCC U10 2018"]
[Site "Santiago de Compostela"]
[Date "2018.11.12"]
[Round "8"]
[White "Lyakh, Vasiliy"]
[Black "Todev, Simeon"]
[Result "0-1"]
[ECO "A45"]
[WhiteElo "1363"]
[BlackElo "1767"]
[Annotator "NA RC"]
[PlyCount "132"]
[EventDate "2018.11.04"]
[EventType "swiss"]
[EventCountry "ESP"]
[SourceTitle "playchess.com"]
[Source "ChessBase"]
[SourceQuality "1"]
[TimeControl "40/5400+30:1800+30"]

1. d4 Nf6 2. Bf4 g6 3. e3 Bg7 4. Nf3 d6 5. Be2 O-O 6. h3 c5 7. c3 b6 8. O-O Bb7 9. Nbd2 Nbd7 10. a4 a6 11. Bh2 Ne4 12. Bd3 Nxd2 13. Nxd2 e5 14. Nc4 Qe7 15. Re1 d5 16. Nxe5 Nxe5 17. dxe5 Bxe5 18. Bxe5 Qxe5 19. Be2 Rad8 20. Bf3 Bc8 21. Qb3 Rd6 22. Rad1 Rfd8 23. Qa3 Rf6 24. Be2 Qg5 25. f4 Qg3 26. Bf3 Bxh3 27. Re2 Bg4 28. Bxg4 Qxg4 29. Red2 Qg3 30. c4 d4 31. Qd3 Rfd6 32. exd4 Qxf4 33. d5 Qh4 34. Re2 Rf6 35. Rde1 Rf4 36. b3 Qf6 37. Qe3 Rf5 38. Qe4 Rf8 39. Rd1 Qd6 40. Rd3 Qf6 41. Re1 Qd6 42. Qe3 Rh5 43. Qf3 Qh2+ 44. Kf2 Rf5 45. Qxf5 gxf5 46. d6 Qh4+ 47. Kf1 Rd8 48. d7 Kf8 49. Ree3 Qf4+ 50. Rf3 Qc1+ 51. Kf2 f4 52. Rd6 Qc2+ 53. Kg1 Qf5 54. Rxb6 Rxd7 55. Rxa6 Rd1+ 56. Kh2 Qh5+ 57. Rh3 Qe5 58. Rf3 Rd2 59. Ra8+ Kg7 60. Ra7 Qe2 61. Rxf7+ Kxf7 62. Rxf4+ Ke6 63. Kh3 Qxg2+ 64. Kh4 Qh2+ 65. Kg5 Rg2+ 66. Rg4 Qe5+ 0-1

[Event "FIDE WCCC U10 2018"]
[Site "Santiago de Compostela"]
[Date "2018.11.13"]
[Round "9"]
[White "Royal, Shreyas"]
[Black "Li, Shanglin"]
[Result "1-0"]
[ECO "A40"]
[WhiteElo "2048"]
[BlackElo "1659"]
[Annotator "NA RC"]
[PlyCount "101"]
[EventDate "2018.11.04"]
[EventType "swiss"]
[EventCountry "ESP"]
[SourceTitle "playchess.com"]
[Source "ChessBase"]
[SourceQuality "1"]
[TimeControl "40/5400+30:1800+30"]

{[%evp 9,100,31,32767,32767,20,-10,6,32767,-14,-33,-14,-32,-27,-65,-65,-110,-112,-102,-58,-61,-64,-67,-68,-80,-40,-37,-35,-55,-24,-23,0,0,0,-63,32767,32767,33,32767,32767,32767,60,45,32767,70,82,32767,73,0,32767,32767,32767,32767,32767,32767,-50,32767,-75,-72,32767,-94,32767,32767,90,26,0,0,0,0,0,0,32767,32767,32767,72,32,76,32767,91,88,32767,32767,32767,32767,32767,223,40,32767,32767,32767,580,555,648,787]} 1. d4 {[%emt 0:00:05]} Nf6 {[%emt 0:00:00]} 2. c4 {[%emt 0:00:40]} e6 {[%emt 0:00:00]} 3. g3 {[%emt 0:00:56]} c5 {[%emt 0:00:00]} 4. d5 {[%emt 0:01:48]} exd5 {[%emt 0:00:05]} 5. cxd5 {[%emt 0:01:16]} b5 {[%emt 0:00:17]} 6. Bg2 {[%emt 0:04:31]} d6 {[%emt 0:00:22]} 7. a4 {[%emt 0:04:05]} b4 {[%emt 0:00:38] A60: Modern Benoni: Early Divergences} 8. Nd2 {[%emt 0:00:49]} (8. b3 g6 9. Bb2 Bg7 10. Nf3 O-O 11. O-O Ba6 12. Re1 Re8 13. Qc2 Ne4 {0-1 (32) Kjartansson,G (2457)-Almasi,Z (2682) Stockholm 2016}) 8... g6 {[%emt 0:04:23]} 9. b3 {[%emt 0:05:24]} Bg7 {[%emt 0:01:02]} 10. Bb2 {[%emt 0:01:46] LiveBook: 3 Games} O-O {[%emt 0:03:52]} 11. Nc4 {[%emt 0:01:54]} Ba6 {[%emt 0:02:23]} 12. Nf3 {[%emt 0:04:38]} Bxc4 {[%emt 0:03:27]} 13. bxc4 {[%emt 0:01:05]} Nbd7 $146 {[%emt 0:00:36]} ({Predecessor:} 13... Ne4 14. Bxg7 Kxg7 15. O-O {½-½ (31) Shumiakina,T (2373)-Alexandrova,O (2445) Istanbul 2003}) 14. Nd2 {[%emt 0:01:06]} Re8 {[%emt 0:01:52]} 15. O-O {[%emt 0:02:36]} Qe7 {[%emt 0:03:30]} 16. Re1 {[%emt 0:03:33]} Nh5 {[%emt 0:09:17]} 17. Bxg7 {[%emt 0:04:09]} Nxg7 {[%emt 0:00:26]} 18. e4 {[%emt 0:03:56]} Qf6 {[%emt 0:04:18]} 19. Qc2 {[%emt 0:06:46]} Re7 {[%emt 0:02:35]} 20. Nb3 {[%emt 0:03:06]} Rae8 {[%emt 0:02:55]} 21. Na5 {[%emt 0:02:28]} (21. Rf1 $11) 21... Nb8 {[%emt 0:00:22]} 22. Qd2 {[%emt 0:01:27]} Rc7 {[%emt 0:14:03]} 23. Rad1 {[%emt 0:04:47]} Qd8 {[%emt 0:05:23]} 24. f4 {[%emt 0:03:02]} Rc8 {[%emt 0:03:31]} (24... Rce7 $11 25. Nb3 Nd7) 25. Nb3 {[%emt 0:00:47]} Qd7 {[%emt 0:00:06]} 26. Qa2 {[%emt 0:02:30]} Qg4 {[%emt 0:02:56]} 27. Nc1 {[%emt 0:02:45]} f5 {[%emt 0:01:34] [#]} (27... g5 $11 {remains equal.}) 28. e5 {[%emt 0:03:30]} (28. Nd3 $1 $16) 28... dxe5 {[%emt 0:01:34]} 29. fxe5 {[%emt 0:00:07]} Rxe5 {[%emt 0:01:03]} 30. Qc2 {[%emt 0:05:12]} Nd7 {[%emt 0:04:41]} 31. Rf1 {[%emt 0:03:48]} Rce8 {[%emt 0:03:08]} 32. Bf3 {[%emt 0:00:45]} Qg5 {[%emt 0:00:36]} 33. Nd3 {[%emt 0:00:05]} Re3 {[%emt 0:00:39]} 34. d6 {[%emt 0:01:02]} Qf6 {[%emt 0:01:30]} 35. Nf4 {[%emt 0:00:43]} Qd8 {[%emt 0:07:02]} (35... Ne6 $11 36. Bd5 (36. Nd5 Qg5 $11) 36... Kg7 37. Bxe6 R8xe6) 36. Nd5 {[%emt 0:01:17]} R3e5 {[%emt 0:00:39]} 37. Ne7+ {[%emt 0:00:26]} R8xe7 $1 {[%emt 0:00:57]} 38. dxe7 {[%emt 0:00:11]} Qxe7 {[%emt 0:00:04]} 39. Qd2 {[%emt 0:00:57]} Nf6 {[%emt 0:02:22]} 40. Rfe1 {[%emt 0:00:00]} Ne4 {[%emt 0:00:00]} 41. Bxe4 {[%emt 0:05:31]} fxe4 {[%emt 0:04:53]} 42. Qd8+ {[%emt 0:00:32]} Qxd8 {[%emt 0:00:29]} 43. Rxd8+ {[%emt 0:00:09]} Kf7 {[%emt 0:00:30]} 44. Rd7+ {[%emt 0:00:13]} Kf6 {[%emt 0:00:20]} 45. Rxa7 {[%emt 0:00:33]} Nf5 {[%emt 0:00:02]} 46. a5 {[%emt 0:06:49]} e3 {[%emt 0:00:12] [#]} (46... Re6 $16) 47. a6 $2 {[%emt 0:01:45]} ({But not} 47. Rxh7 $6 Nd4 $16) ({White has to play} 47. Rb7 $1 $18 Re6 48. Kf1 (48. Rxh7 Nd4 $11)) 47... Nd4 {[%emt 0:00:15]} 48. Kg2 {[%emt 0:03:43]} Nc2 {[%emt 0:00:19]} 49. Re2 {[%emt 0:01:02]} Nd4 {[%emt 0:00:11] [#]} 50. Rb7 $1 {[%emt 0:01:47]} Nxe2 $18 {[%emt 0:01:43]} 51. a7 {[%emt 0:00:11]} 1-0

[Event "FIDE WCCC U10 2018"]
[Site "Santiago de Compostela"]
[Date "2018.11.13"]
[Round "9"]
[White "Materia, Marco"]
[Black "Silva, Daniel Frederico V"]
[Result "1-0"]
[ECO "C47"]
[WhiteElo "2035"]
[BlackElo "1693"]
[Annotator "NA RC"]
[PlyCount "91"]
[EventDate "2018.11.04"]
[EventType "swiss"]
[EventCountry "ESP"]
[SourceTitle "playchess.com"]
[Source "ChessBase"]
[SourceQuality "1"]
[TimeControl "40/5400+30:1800+30"]

{[%evp 13,91,34,42,6,0,16,0,-8,-8,-75,-77,-82,-77,-74,16,32767,32767,17,32767,17,32,25,32767,32767,32767,13,32767,0,0,0,0,32767,32767,32767,32767,32767,4,32767,32767,18,20,21,23,32767,32767,32767,24,17,32767,14,32767,32767,23,32767,32767,32767,32767,32767,32767,0,32767,0,32767,32767,0,0,32767,32767,37,14,366,406,32767,32767,32767,32767,552,535,690,786]} 1. e4 {[%emt 0:00:00]} e5 {[%emt 0:00:00]} 2. Nf3 {[%emt 0:00:00]} Nc6 {[%emt 0:00:04]} 3. Nc3 {[%emt 0:00:07]} Nf6 {[%emt 0:00:08]} 4. d4 {[%emt 0:00:21]} Bb4 {[%emt 0:00:32]} 5. Nxe5 {[%emt 0:00:23]} Qe7 {[%emt 0:00:34]} 6. Qd3 {[%emt 0:00:20]} Nxd4 {[%emt 0:03:27] C47: Scotch Four Knights and Four Knights with 4 g3} 7. Qxd4 {[%emt 0:08:14]} Bc5 {[%emt 0:05:25] LiveBook: 6 Games} 8. Qc4 $146 {[%emt 0:17:55]} ({Predecessor:} 8. Qd3 Qxe5 9. f4 Qe7 10. Be2 d6 11. Bd2 O-O 12. O-O-O c6 13. h3 b5 14. Bf3 {0-1 (33) Kanmazalp,O (2481)-Triapishko,O (2509) Ankara 2018}) 8... Qxe5 {[%emt 0:04:23]} 9. f4 {[%emt 0:02:07]} Qe7 {[%emt 0:04:08]} 10. Be2 {[%emt 0:02:45]} d6 {[%emt 0:04:19]} 11. e5 {[%emt 0:12:00]} (11. Bf3 $11) 11... dxe5 {[%emt 0:23:44]} 12. fxe5 {[%emt 0:02:15]} Qxe5 {[%emt 0:00:40]} 13. Bf4 {[%emt 0:00:53]} Qd4 {[%emt 0:07:56]} ({Better is} 13... Qe7 $15 14. O-O-O Be6) 14. Qxd4 {[%emt 0:00:48]} Bxd4 {[%emt 0:00:12]} 15. Nb5 {[%emt 0:02:26]} Bb6 {[%emt 0:05:03]} 16. Nxc7+ {[%emt 0:02:44]} Bxc7 {[%emt 0:00:22]} 17. Bxc7 {[%emt 0:00:08]} O-O {[%emt 0:02:52]} 18. O-O {[%emt 0:00:23]} Be6 {[%emt 0:04:31]} 19. Bd3 {[%emt 0:10:27]} Rac8 {[%emt 0:02:31]} 20. Bd6 {[%emt 0:00:49]} Rfe8 $1 {[%emt 0:01:29]} 21. b3 {[%emt 0:02:23]} Bd5 {[%emt 0:04:00]} 22. c4 {[%emt 0:06:57]} Be4 {[%emt 0:03:14]} 23. Bxe4 {[%emt 0:00:48]} Rxe4 {[%emt 0:02:23]} 24. Rfe1 {[%emt 0:01:34]} Rce8 {[%emt 0:01:37]} 25. Kf1 {[%emt 0:01:00]} R4e6 {[%emt 0:03:44]} 26. Rxe6 {[%emt 0:00:54]} Rxe6 {[%emt 0:00:11]} 27. Rd1 {[%emt 0:00:27]} h6 {[%emt 0:01:31]} 28. Bc5 {[%emt 0:07:40]} a6 {[%emt 0:02:03]} 29. Rd8+ {[%emt 0:01:09]} Kh7 {[%emt 0:02:35]} 30. Bd4 {[%emt 0:02:02]} Ne4 {[%emt 0:02:21]} 31. c5 {[%emt 0:02:06]} Re7 {[%emt 0:00:59]} 32. b4 {[%emt 0:00:44]} Kg6 {[%emt 0:04:04]} 33. a4 {[%emt 0:02:41]} Nd2+ {[%emt 0:02:55]} 34. Kf2 {[%emt 0:00:46]} Ne4+ {[%emt 0:00:51]} 35. Kg1 {[%emt 0:00:27]} f6 {[%emt 0:01:14]} 36. g3 {[%emt 0:05:45]} Kf5 {[%emt 0:00:27]} 37. Kg2 {[%emt 0:00:16]} Nd2 {[%emt 0:01:09]} 38. Bf2 {[%emt 0:01:24]} Re2 {[%emt 0:00:46]} 39. Rd5+ $1 {[%emt 0:01:13]} Ke6 {[%emt 0:00:19]} 40. Rd6+ {[%emt 0:00:00] [#]} Ke7 $2 {[%emt 0:00:00]} (40... Ke5 $1 $17 41. Kg1 {[#]} Rxf2 $1 {[%mdl 512]} 42. Kxf2 Ne4+ 43. Ke3 Nxd6 44. cxd6 Kxd6) 41. Rb6 {[%emt 0:01:13]} Ne4 $2 {[%emt 0:07:28]} ({Better is} 41... f5 $14) 42. Rxb7+ {[%emt 0:00:18]} Ke6 {[%emt 0:00:15]} 43. Kf3 {[%emt 0:00:09]} Rxf2+ {[%emt 0:00:07]} 44. Kxe4 {[%emt 0:00:07]} Rxh2 {[%emt 0:00:35]} 45. Rb6+ {[%emt 0:00:42]} Kf7 {[%emt 0:00:12]} 46. Rxa6 $18 {[%emt 0:00:05]} 1-0

[Event "FIDE WCCC U10 2018"]
[Site "Santiago de Compostela"]
[Date "2018.11.13"]
[Round "9"]
[White "Volkov, Maksim"]
[Black "Jin Yueheng"]
[Result "1/2-1/2"]
[ECO "B13"]
[WhiteElo "1971"]
[BlackElo "1914"]
[Annotator "NA RC"]
[PlyCount "76"]
[EventDate "2018.11.04"]
[EventType "swiss"]
[EventCountry "ESP"]
[SourceTitle "playchess.com"]
[Source "ChessBase"]
[SourceQuality "1"]
[TimeControl "40/5400+30:1800+30"]

{[%evp 8,74,24,25,31,32767,32767,32767,32767,32767,35,32767,32767,32767,32767,20,32767,18,22,32767,32767,20,29,0,32767,2,27,33,42,34,40,39,45,42,35,45,49,16,22,-26,32767,32767,32767,9,10,9,0,0,14,32767,32767,32767,32767,32767,32767,32767,89,53,75,0,-8,32767,0,32767,32767,32767,-1,32767,0]} 1. e4 c6 2. d4 d5 3. exd5 cxd5 4. Bd3 Nc6 5. c3 Nf6 {LiveBook: 1397 Games} 6. Bf4 Bg4 7. Qb3 Qc8 8. Nd2 e6 9. Ngf3 Be7 10. O-O O-O 11. Rae1 Bh5 12. Qc2 Bg6 13. Bxg6 hxg6 14. Qd3 {[#] B13: Caro-Kann (Abtausch-Variante 4.c4)} Qd8 $146 ({Vorgänger:} 14... a6 15. Ng5 Nh5 16. Qh3 e5 17. dxe5 Qf5 18. g3 d4 19. Ndf3 dxc3 20. bxc3 Qxh3 21. Nxh3 Nxf4 22. Nxf4 {½-½ (77) Inarkiev,E (2686)-Esipenko,A (2587) Sochi 2018}) 15. Ne5 Nh7 16. Bg3 Bf6 17. f4 Ne7 18. Rf3 g5 19. fxg5 Nxg5 20. Rf2 Nf5 21. Bf4 Nd6 22. Rfe2 Nge4 23. Ndf3 Be7 24. g4 Ng5 25. Kg2 (25. Bxg5 $16 Bxg5 26. h4 (26. Nxg5 Qxg5 27. Qe3 Qxe3+ 28. Rxe3 Rac8 $11)) 25... Nxf3 26. Qxf3 Ne4 27. Rh1 Bh4 28. Bg3 g6 29. Rf1 Bxg3 30. hxg3 Kg7 31. Nd3 b5 (31... Qg5 $11 {keeps the balance.}) 32. Qf4 Qe7 33. Ne5 (33. Nc5 $16) 33... f6 34. Nd3 g5 35. Qe3 Rac8 36. Rh1 Rh8 37. Ree1 Rxh1 $11 38. Rxh1 Rh8 1/2-1/2

[Event "FIDE WCCC U10 2018"]
[Site "Santiago de Compostela"]
[Date "2018.11.13"]
[Round "9"]
[White "Zhao, Erick"]
[Black "Pingin, Artem"]
[Result "1/2-1/2"]
[ECO "B50"]
[WhiteElo "1957"]
[BlackElo "1981"]
[Annotator "NA RC"]
[PlyCount "172"]
[EventDate "2018.11.04"]
[EventType "swiss"]
[EventCountry "ESP"]
[SourceTitle "playchess.com"]
[Source "ChessBase"]
[SourceQuality "1"]
[TimeControl "40/5400+30:1800+30"]

{[%evp 8,172,25,-14,0,-6,0,-8,-2,0,0,14,6,10,38,-2,23,19,43,35,32767,32767,32767,58,32767,80,32767,83,104,63,83,76,32767,84,111,32767,32767,32767,32767,140,124,32767,53,64,126,-31,32767,32767,141,32767,60,59,60,58,32767,20,53,32767,49,21,23,32767,19,0,0,0,32767,9,32767,2,7,2,32767,32767,0,-9,0,0,0,4,41,6,4,32767,4,-19,-21,-24,-22,-26,-33,-29,32767,-44,-41,-40,-32,-22,-35,-40,-22,-33,-31,-39,-36,-34,-30,-30,-36,-34,-30,-45,-32,-36,-32,-32,-36,-31,-31,-39,-33,-33,-32,-41,-34,-33,-40,-38,-35,-41,-26,-29,-38,-32,-21,-30,-8,32767,32767,32767,32767,-15,0,-8,0,-7,0,0,0,0,0,32767,32767,32767,32767,0,0,0,0,0,0,0,0,0,0,-8,-8]} 1. e4 c5 2. Nf3 d6 3. c3 Nf6 4. Be2 Nc6 5. d3 e6 6. O-O Be7 {LiveBook: 31 Games} 7. h3 {B50: Sicilian: 2...d6, Miscellaneous} O-O 8. Bf4 Qc7 $146 ({Predecessor:} 8... e5 9. Bh2 Rb8 10. a4 Ne8 11. Na3 f5 12. exf5 Bxf5 {1-0 (52) Korovnik,I (2318)-Mora,E (2176) ICCF email 2008}) 9. Nbd2 e5 10. Bh2 Ne8 11. Ne1 Bg5 12. Nc2 Be6 13. Nf3 Be7 14. d4 cxd4 15. cxd4 exd4 16. Ncxd4 Nxd4 17. Nxd4 Qb6 18. Qd2 Nf6 19. Bf3 Rad8 20. Rac1 Rd7 21. Rfd1 Rfd8 22. Qc2 Bf8 23. Nxe6 {[%emt 1:14:05]} fxe6 {[%emt 1:26:41]} 24. e5 dxe5 25. Bxe5 Nd5 {[#]} ({Black should try} 25... Rxd1+ $1 $14 26. Rxd1 Rxd1+ 27. Qxd1 Qa5) 26. Bg4 $2 ({White should play} 26. Bd4 $1 $16 {[%cal Rd4b6]} Qa6 27. Qe4) 26... Rf7 27. Bd4 Qa6 28. Qe4 Nf6 29. Bxf6 Rxd1+ 30. Rxd1 Rxf6 31. Bf3 b5 32. Qc6 Qa4 33. b3 Qxa2 34. Qxb5 Qc2 35. Qd3 Qxd3 36. Rxd3 a5 37. Kf1 Bb4 38. Be4 h6 39. f3 {[%emt 0:31:42]} Rf8 40. Rd1 Kf7 41. Bd3 Kf6 42. Bc4 Rc8 43. Rd4 Bc3 44. Rf4+ Ke7 45. Re4 e5 46. f4 Rf8 47. g3 g5 48. Ke2 gxf4 49. gxf4 Rxf4 50. Rxf4 exf4 51. Kf3 Bd2 52. Bg8 Kf6 53. Bd5 Ke5 54. Bc4 Bc1 55. Bf7 Kd4 56. Bg8 Kc3 57. Bf7 Be3 58. Bg8 Kd2 59. Bf7 Ke1 60. Bg8 Kd1 61. Bf7 Kc2 62. Bg8 Kd3 63. Bc4+ Kd4 64. Bg8 Ke5 65. Bc4 Kf5 66. Bg8 Kg5 67. Be6 Kh4 68. Bc8 h5 69. Bf5 Kg5 70. Be6 h4 71. Bc4 Kf5 72. Bg8 Ke5 73. Bf7 Kd4 74. Be6 Kc3 75. Bf7 Kb4 76. Bg8 Ka3 77. Bf7 Bc1 78. Bg8 Kb4 79. Bf7 a4 80. bxa4 Kxa4 81. Be6 Kb5 82. Bd5 Kc5 {[%emt 0:37:56]} 83. Bb7 {[%emt 0:19:01]} Kd4 84. Kg4 Ke3 {[%emt 0:00:10]} 85. Kxh4 f3 {[#]} 86. Bxf3 $11 {[%emt 0:00:43]} Kxf3 {[%emt 0:00:05]} 1/2-1/2